fUST/lending_fUST_20241213
["ID","MTS","AMOUNT","RATE_DAILY","PERIOD"]
[345123957,1734046242840,-500.0,0.00027397,7]
[345123958,1734046242849,-500.0,0.00027397,7]
[345123959,1734046242858,-516.84231429,0.00027397,7]
[345123960,1734046242868,-746.08,0.00027397,7]
[345123961,1734046242878,-500.0,0.00027397,7]
[345123962,1734046242887,-583.28,0.00027397,7]
[345123964,1734046242897,-501.56349232,0.00027397,7]
[345123966,1734046243040,-500.0,0.00027397,7]
[345123967,1734046243070,-500.0,0.00027397,7]
[345123968,1734046243082,-1183.44,0.00027397,7]
[345123969,1734046243092,-500.0,0.00027397,7]
[345123970,1734046243102,-500.0,0.00027397,7]
[345123971,1734046243112,-1184.49,0.00027397,7]
[345123972,1734046243121,-500.0,0.00027397,7]
[345123973,1734046243131,-500.0,0.00027397,7]
[345123974,1734046243141,-599.46412215,0.00027397,7]
[345123975,1734046243151,-500.0,0.00027397,7]
[345123976,1734046243161,-500.0,0.00027397,7]
[345123977,1734046243171,-1695.6,0.00027397,7]
[345123978,1734046243181,-1032.43,0.00027397,7]
[345123979,1734046243191,-887.16,0.00027397,7]
[345123980,1734046243201,-500.0,0.00027397,7]
[345123981,1734046243211,-967.37,0.00027397,7]
[345123982,1734046243221,-500.0,0.00027397,7]
[345123983,1734046243230,-638.0,0.00027397,7]
[345123984,1734046243239,-665.66,0.00027397,2]
[345123985,1734046243249,-500.0,0.00027397,7]
[345123986,1734046243258,-500.0,0.00027397,7]
[345123987,1734046243268,-616.36512871,0.00027397,7]
[345123988,1734046243277,-500.0,0.00027397,7]
[345123989,1734046243287,-500.0,0.00027397,7]
[345123990,1734046243296,-500.0,0.00027397,7]
[345123991,1734046243306,-500.0,0.00027397,7]
[345123992,1734046243315,-500.0,0.00027397,7]
[345123993,1734046243324,-525.51,0.00027397,7]
[345123994,1734046243339,-2801.72,0.00027397,7]
[345123995,1734046243348,-524.02,0.00027397,7]
[345123996,1734046243358,-500.0,0.00027397,7]
[345123997,1734046243367,-596.64,0.00027397,7]
[345123998,1734046243376,-513.93982444,0.00027397,7]
[345123999,1734046243386,-500.0,0.00027397,7]
[345124000,1734046243395,-500.0,0.00027397,7]
[345124001,1734046243404,-500.0,0.00027397,7]
[345124002,1734046243413,-500.0,0.00027397,7]
[345124003,1734046243422,-500.0,0.00027397,7]
[345124004,1734046243432,-500.0,0.00027397,7]
[345124005,1734046243443,-724.88,0.00027397,7]
[345124006,1734046243453,-500.0,0.00027397,7]
[345124007,1734046243464,-1167.65,0.00027397,7]
[345124008,1734046243476,-500.0,0.00027397,7]
[345124009,1734046243485,-500.0,0.00027397,7]
[345124010,1734046243496,-1034.91,0.00027397,7]
[345124011,1734046243506,-500.0,0.00027397,7]
[345124012,1734046243515,-500.0,0.00027397,7]
[345124013,1734046243525,-771.14,0.00027397,7]
[345124014,1734046243534,-394.50304213,0.00027397,7]
[345124015,1734046243544,-500.0,0.00027397,7]
[345124016,1734046243554,-500.0,0.00027397,7]
[345124017,1734046243564,-500.0,0.00027397,7]
[345124018,1734046243573,-500.0,0.00027397,7]
[345124019,1734046243587,-500.0,0.00027397,7]
[345124020,1734046243597,-500.0,0.00027397,7]
[345124021,1734046243607,-500.0,0.00027397,7]
[345124022,1734046243616,-500.0,0.00027397,7]
[345124023,1734046243625,-500.0,0.00027397,7]
[345124024,1734046243635,-500.0,0.00027397,7]
[345124025,1734046243644,-1008.22,0.00027397,7]
[345124026,1734046243653,-500.0,0.00027397,7]
[345124027,1734046243663,-500.0,0.00027397,7]
[345124028,1734046243672,-500.0,0.00027397,7]
[345124029,1734046243682,-500.0,0.00027397,7]
[345124030,1734046243691,-500.0,0.00027397,7]
[345124031,1734046243700,-1042.33,0.00027397,7]
[345124032,1734046243710,-1360.07,0.00027397,7]
[345124033,1734046243719,-553.64922992,0.00027397,7]
[345124034,1734046243729,-500.0,0.00027397,7]
[345124035,1734046243739,-500.0,0.00027397,7]
[345124036,1734046243748,-500.0,0.00027397,7]
[345124037,1734046243759,-500.0,0.00027397,7]
[345124038,1734046243768,-500.0,0.00027397,7]
[345124039,1734046243778,-500.0,0.00027397,7]
[345124040,1734046243787,-500.0,0.00027397,7]
[345124041,1734046243797,-1518.75,0.00027397,7]
[345124042,1734046243806,-505.28593765,0.00027397,7]
[345124043,1734046243816,-239.22054721,0.00027397,7]
[345124044,1734046243825,-923.34,0.00027397,7]
[345124045,1734046243839,-897.01,0.00027397,7]
[345124046,1734046243849,-500.0,0.00027397,7]
[345124047,1734046243858,-2054.92,0.00027397,7]
[345124048,1734046243868,-500.0,0.00027397,7]
[345124049,1734046243877,-500.0,0.00027397,7]
[345124051,1734046243887,-500.0,0.00027397,7]
[345124052,1734046243897,-705.43,0.00027397,7]
[345124053,1734046243907,-500.0,0.00027397,7]
[345124054,1734046243917,-500.0,0.00027397,7]
[345124055,1734046243926,-500.0,0.00027397,7]
[345124056,1734046243936,-500.0,0.00027397,7]
[345124057,1734046243946,-500.0,0.00027397,7]
[345124059,1734046243955,-500.0,0.00027397,7]
[345124060,1734046243965,-160.84088258,0.00027397,7]
[345124061,1734046243974,-500.0,0.00027397,7]
[345124062,1734046243984,-500.0,0.00027397,7]
[345124063,1734046243993,-500.0,0.00027397,7]
[345124064,1734046244003,-500.0,0.00027397,7]
[345124065,1734046244013,-781.87,0.00027397,7]
[345124067,1734046244023,-500.0,0.00027397,7]
[345124069,1734046244031,-500.0,0.00027397,7]
[345124070,1734046244041,-500.0,0.00027397,7]
[345124071,1734046244050,-500.0,0.00027397,7]
[345124072,1734046244059,-500.0,0.00027397,7]
[345124073,1734046244068,-500.0,0.00027397,7]
[345124074,1734046244080,-901.54,0.00027397,7]
[345124075,1734046244089,-857.5,0.00027397,7]
[345124076,1734046244098,-500.0,0.00027397,7]
[345124077,1734046244107,-500.0,0.00027397,7]
[345124078,1734046244116,-500.0,0.00027397,7]
[345124079,1734046244126,-500.0,0.00027397,7]
[345124080,1734046244135,-151.0,0.00027397,7]
[345124081,1734046244145,-151.0,0.00027397,7]
[345124082,1734046244155,-500.0,0.00027397,7]
[345124083,1734046244164,-684.63,0.00027397,7]
[345124084,1734046244174,-1462.35,0.00027397,7]
[345124085,1734046244183,-500.0,0.00027397,7]
[345124086,1734046244193,-500.0,0.00027397,7]
[345124087,1734046244203,-500.0,0.00027397,7]
[345124088,1734046244212,-705.85,0.00027397,7]
[345124089,1734046244221,-500.0,0.00027397,7]
[345124090,1734046244231,-513.50473446,0.00027397,7]
[345124091,1734046244240,-506.14,0.00027397,7]
[345124092,1734046244250,-500.0,0.00027397,7]
[345124093,1734046244259,-500.0,0.00027397,7]
[345124094,1734046244269,-500.0,0.00027397,7]
[345124095,1734046244277,-500.0,0.00027397,7]
[345124096,1734046244287,-500.0,0.00027397,2]
[345124097,1734046244296,-500.0,0.00027397,7]
[345124098,1734046244305,-500.0,0.00027397,7]
[345124099,1734046244315,-535.13,0.00027397,7]
[345124100,1734046244324,-608.85,0.00027397,7]
[345124101,1734046244336,-500.0,0.00027397,7]
[345124102,1734046244345,-796.13,0.00027397,7]
[345124103,1734046244355,-500.0,0.00027397,7]
[345124104,1734046244364,-500.0,0.00027397,7]
[345124105,1734046244374,-500.0,0.00027397,7]
[345124106,1734046244384,-1190.65,0.00027397,7]
[345124107,1734046244394,-560.9,0.00027397,7]
[345124108,1734046244405,-500.0,0.00027397,7]
[345124109,1734046244414,-500.0,0.00027397,7]
[345124110,1734046244424,-500.0,0.00027397,7]
[345124111,1734046244433,-500.0,0.00027397,7]
[345124112,1734046244443,-500.0,0.00027397,7]
[345124113,1734046244452,-2022.84,0.00027397,7]
[345124114,1734046244462,-500.0,0.00027397,7]
[345124115,1734046244476,-774.67,0.00027397,7]
[345124116,1734046244486,-335.99450486,0.00027397,7]
[345124117,1734046244496,-500.0,0.00027397,10]
[345124118,1734046244506,-694.37,0.00027397,7]
[345124119,1734046244517,-500.0,0.00027397,7]
[345124120,1734046244526,-500.0,0.00027397,7]
[345124121,1734046244535,-500.0,0.00027397,7]
[345124122,1734046244544,-500.0,0.00027397,7]
[345124123,1734046244554,-500.0,0.00027397,7]
[345124124,1734046244564,-500.0,0.00027397,7]
[345124125,1734046244573,-500.0,0.00027397,7]
[345124126,1734046244585,-500.0,0.00027397,7]
[345124127,1734046244594,-570.98,0.00027397,7]
[345124128,1734046244603,-891.5,0.00027397,7]
[345124129,1734046244612,-500.0,0.00027397,7]
[345124130,1734046244622,-500.0,0.00027397,7]
[345124131,1734046244631,-500.0,0.00027397,7]
[345124132,1734046244641,-580.51,0.00027397,7]
[345124133,1734046244650,-500.0,0.00027397,7]
[345124134,1734046244660,-1051.48,0.00027397,7]
[345124135,1734046244670,-956.23,0.00027397,7]
[345124136,1734046244679,-919.85,0.00027397,7]
[345124137,1734046244688,-500.0,0.00027397,7]
[345124138,1734046244697,-500.0,0.00027397,7]
[345124139,1734046244706,-500.0,0.00027397,7]
[345124140,1734046244715,-500.0,0.00027397,7]
[345124141,1734046244725,-500.0,0.00027397,7]
[345124142,1734046244734,-500.0,0.00027397,7]
[345124143,1734046244743,-934.06,0.00027397,7]
[345124144,1734046244752,-500.0,0.00027397,7]
[345124145,1734046244762,-500.0,0.00027397,7]
[345124146,1734046244771,-986.98,0.00027397,7]
[345124147,1734046244781,-500.0,0.00027397,7]
[345124148,1734046244792,-1078.84,0.00027397,7]
[345124149,1734046244801,-422.55409314,0.00027397,7]
[345124150,1734046244811,-500.0,0.00027397,7]
[345124151,1734046244820,-500.0,0.00027397,7]
[345124152,1734046244831,-500.0,0.00027397,7]
[345124153,1734046244840,-1804.76,0.00027397,7]
[345124154,1734046244850,-552.01,0.00027397,7]
[345124155,1734046244859,-500.0,0.00027397,7]
[345124156,1734046244869,-650.03,0.00027397,7]
[345124157,1734046244879,-500.0,0.00027397,7]
[345124158,1734046244888,-500.0,0.00027397,7]
[345124159,1734046244899,-500.0,0.00027397,7]
[345124160,1734046244908,-168.0,0.00027397,7]
[345124161,1734046244918,-500.0,0.00027397,7]
[345124162,1734046244928,-500.0,0.00027397,7]
[345124163,1734046244938,-713.21,0.00027397,7]
[345124164,1734046244948,-500.0,0.00027397,7]
[345124165,1734046244957,-643.59286745,0.00027397,7]
[345124166,1734046244968,-500.0,0.00027397,7]
[345124167,1734046244977,-1000.0,0.00027397,7]
[345124168,1734046244987,-862.08,0.00027397,7]
[345124169,1734046244997,-500.0,0.00027397,7]
[345124170,1734046245007,-151.0,0.00027397,7]
[345124171,1734046245016,-151.0,0.00027397,7]
[345124172,1734046245026,-151.0,0.00027397,7]
[345124173,1734046245035,-151.0,0.00027397,7]
[345124174,1734046245045,-151.0,0.00027397,7]
[345124175,1734046245055,-151.0,0.00027397,7]
[345124176,1734046245065,-500.0,0.00027397,7]
[345124177,1734046245074,-483.99239594,0.00027397,7]
[345124178,1734046245085,-568.78,0.00027397,7]
[345124179,1734046245095,-648.35,0.00027397,7]
[345124180,1734046245105,-500.0,0.00027397,7]
[345124181,1734046245115,-500.0,0.00027397,7]
[345124182,1734046245124,-500.0,0.00027397,7]
[345124183,1734046245134,-578.06590636,0.00027397,7]
[345124184,1734046245143,-1536.44,0.00027397,7]
[345124185,1734046245153,-500.0,0.00027397,7]
[345124186,1734046245162,-500.0,0.00027397,7]
[345124187,1734046245172,-500.0,0.00027397,7]
[345124188,1734046245182,-500.0,0.00027397,7]
[345124189,1734046245191,-500.0,0.00027397,7]
[345124190,1734046245202,-500.0,0.00027397,7]
[345124191,1734046245212,-500.0,0.00027397,7]
[345124192,1734046245222,-1106.83,0.00027397,7]
[345124193,1734046245233,-500.0,0.00027397,7]
[345124194,1734046245243,-500.0,0.00027397,7]
[345124195,1734046245253,-1250.62,0.00027397,7]
[345124196,1734046245263,-1102.85,0.00027397,7]
[345124197,1734046245272,-575.14,0.00027397,7]
[345124198,1734046245282,-1560.62,0.00027397,7]
[345124199,1734046245291,-197.40802141,0.00027397,7]
[345124200,1734046245301,-500.0,0.00027397,7]
[345124201,1734046245310,-500.0,0.00027397,7]
[345124202,1734046245319,-500.0,0.00027397,7]
[345124203,1734046245329,-500.0,0.00027397,7]
[345124204,1734046245338,-780.98,0.00027397,7]
[345124205,1734046245348,-500.0,0.00027397,7]
[345124206,1734046245358,-500.0,0.00027397,7]
[345124207,1734046245367,-2574.43,0.00027397,7]
[345124208,1734046245377,-500.0,0.00027397,7]
[345124209,1734046245386,-500.0,0.00027397,7]
[345124210,1734046245395,-926.6,0.00027397,7]
[345124211,1734046245405,-506.74664033,0.00027397,7]
[345124212,1734046245415,-500.0,0.00027397,7]
[345124213,1734046245424,-503.28970413,0.00027397,7]
[345124214,1734046245434,-500.0,0.00027397,7]
[345124215,1734046245443,-500.0,0.00027397,7]
[345124216,1734046245454,-553.974383,0.00027397,7]
[345124217,1734046245466,-1055.45,0.00027397,7]
[345124218,1734046245477,-500.0,0.00027397,7]
[345124219,1734046245487,-673.54,0.00027397,7]
[345124220,1734046245497,-500.0,0.00027397,7]
[345124221,1734046245507,-736.87,0.00027397,7]
[345124222,1734046245517,-1917.08,0.00027397,7]
[345124223,1734046245527,-2074.2,0.00027397,7]
[345124224,1734046245536,-523.22106307,0.00027397,7]
[345124225,1734046245548,-500.0,0.00027397,7]
[345124226,1734046245557,-291.60488017,0.00027397,7]
[345124227,1734046245566,-781.83,0.00027397,7]
[345124228,1734046245576,-1279.73,0.00027397,7]
[345124229,1734046245586,-500.0,0.00027397,7]
[345124230,1734046245596,-500.0,0.00027397,7]
[345124231,1734046245606,-500.0,0.00027397,7]
[345124232,1734046245615,-500.0,0.00027397,7]
[345124233,1734046245624,-775.42,0.00027397,7]
[345124234,1734046245634,-1832.95,0.00027397,7]
[345124235,1734046245644,-500.0,0.00027397,7]
[345124236,1734046245654,-500.0,0.00027397,7]
[345124237,1734046245664,-500.0,0.00027397,7]
[345124238,1734046245674,-836.69,0.00027397,7]
[345124239,1734046245684,-500.0,0.00027397,7]
[345124240,1734046245694,-500.0,0.00027397,7]
[345124241,1734046245704,-500.0,0.00027397,7]
[345124242,1734046245714,-500.0,0.00027397,7]
[345124243,1734046245724,-500.0,0.00027397,7]
[345124244,1734046245733,-500.0,0.00027397,7]
[345124245,1734046245743,-500.0,0.00027397,7]
[345124252,1734046245891,-151.0,0.00027397,7]
[345124254,1734046245902,-500.0,0.00027397,7]
[345124256,1734046245913,-151.0,0.00027397,7]
[345124258,1734046245922,-1460.04,0.00027397,7]
[345124261,1734046245932,-151.0,0.00027397,7]
[345124264,1734046245942,-556.37,0.00027397,7]
[345124265,1734046245951,-297.098287,0.00027397,7]
[345124268,1734046245962,-1689.03,0.00027397,7]
[345124270,1734046245972,-500.0,0.00027397,7]
[345124273,1734046245982,-721.17,0.00027397,7]
[345124275,1734046245991,-403.67987641,0.00027397,7]
[345124277,1734046246001,-512.85,0.00027397,7]
[345124279,1734046246010,-500.0,0.00027397,7]
[345124280,1734046246020,-562.17932242,0.00027397,7]
[345124281,1734046246030,-500.0,0.00027397,7]
[345124282,1734046246040,-500.0,0.00027397,7]
[345124283,1734046246050,-840.04,0.00027397,7]
[345124284,1734046246060,-557.90786383,0.00027397,7]
[345124285,1734046246070,-500.0,0.00027397,7]
[345124286,1734046246080,-813.54,0.00027397,7]
[345124287,1734046246089,-500.0,0.00027397,7]
[345124288,1734046246099,-634.35,0.00027397,7]
[345124289,1734046246109,-1031.54,0.00027397,7]
[345124290,1734046246119,-1908.84,0.00027397,7]
[345124291,1734046246129,-500.0,0.00027397,7]
[345124292,1734046246139,-1577.73,0.00027397,7]
[345124293,1734046246148,-500.0,0.00027397,7]
[345124294,1734046246158,-1519.69,0.00027397,7]
[345124295,1734046246168,-500.0,0.00027397,7]
[345124296,1734046246177,-623.43,0.00027397,7]
[345124297,1734046246187,-811.49,0.00027397,7]
[345124299,1734046246197,-500.0,0.00027397,7]
[345124300,1734046246206,-1088.06,0.00027397,7]
[345124301,1734046246216,-500.0,0.00027397,7]
[345124302,1734046246226,-500.0,0.00027397,7]
[345124303,1734046246235,-500.0,0.00027397,7]
[345124304,1734046246244,-500.0,0.00027397,2]
[345124305,1734046246253,-551.58,0.00027397,7]
[345124306,1734046246262,-500.0,0.00027397,7]
[345124307,1734046246272,-500.0,0.00027397,7]
[345124308,1734046246281,-500.0,0.00027397,7]
[345124309,1734046246291,-1836.54,0.00027397,7]
[345124310,1734046246300,-500.0,0.00027397,7]
[345124311,1734046246310,-500.0,0.00027397,7]
[345124312,1734046246319,-760.45,0.00027397,7]
[345124313,1734046246332,-500.0,0.00027397,7]
[345124314,1734046246343,-3511.91,0.00027397,7]
[345124316,1734046246353,-500.0,0.00027397,7]
[345124318,1734046246363,-349.34795116,0.00027397,7]
[345124320,1734046246372,-500.0,0.00027397,7]
[345124322,1734046246381,-500.0,0.00027397,7]
[345124323,1734046246391,-544.52,0.00027397,7]
[345124324,1734046246401,-500.0,0.00027397,7]
[345124325,1734046246410,-500.0,0.00027397,7]
[345124326,1734046246420,-500.0,0.00027397,7]
[345124327,1734046246429,-500.0,0.00027397,7]
[345124328,1734046246439,-978.29,0.00027397,7]
[345124329,1734046246448,-792.47,0.00027397,7]
[345124330,1734046246458,-500.0,0.00027397,7]
[345124331,1734046246472,-500.0,0.00027397,7]
[345124332,1734046246482,-612.1,0.00027397,7]
[345124333,1734046246492,-746.02,0.00027397,7]
[345124334,1734046246503,-1688.43,0.00027397,7]
[345124335,1734046246514,-1324.58,0.00027397,7]
[345124336,1734046246524,-500.0,0.00027397,7]
[345124337,1734046246533,-859.13,0.00027397,7]
[345124338,1734046246543,-1139.93,0.00027397,7]
[345124339,1734046246553,-500.0,0.00027397,7]
[345124340,1734046246562,-500.0,0.00027397,7]
[345124341,1734046246572,-500.0,0.00027397,7]
[345124342,1734046246583,-1425.88,0.00027397,7]
[345124343,1734046246594,-500.0,0.00027397,7]
[345124344,1734046246603,-500.0,0.00027397,7]
[345124345,1734046246613,-500.0,0.00027397,7]
[345124346,1734046246622,-500.0,0.00027397,7]
[345124347,1734046246631,-911.14,0.00027397,7]
[345124348,1734046246640,-500.0,0.00027397,7]
[345124349,1734046246650,-500.0,0.00027397,7]
[345124350,1734046246659,-1070.16,0.00027397,7]
[345124351,1734046246669,-1701.56,0.00027397,7]
[345124352,1734046246678,-500.0,0.00027397,7]
[345124353,1734046246688,-1165.02,0.00027397,7]
[345124354,1734046246698,-919.79,0.00027397,7]
[345124355,1734046246708,-896.04,0.00027397,7]
[345124356,1734046246718,-795.15,0.00027397,7]
[345124357,1734046246727,-511.76484333,0.00027397,7]
[345124358,1734046246737,-1156.55,0.00027397,7]
[345124359,1734046246746,-500.0,0.00027397,7]
[345124360,1734046246755,-521.47534885,0.00027397,7]
[345124361,1734046246764,-724.17,0.00027397,7]
[345124362,1734046246774,-500.0,0.00027397,7]
[345124363,1734046246783,-500.0,0.00027397,7]
[345124364,1734046246793,-500.0,0.00027397,7]
[345124365,1734046246802,-814.56,0.00027397,7]
[345124366,1734046246811,-4388.21,0.00027397,7]
[345124367,1734046246820,-1626.17,0.00027397,7]
[345124368,1734046246830,-500.0,0.00027397,7]
[345124369,1734046246839,-500.0,0.00027397,7]
[345124370,1734046246848,-311.76978534,0.00027397,7]
[345124371,1734046246858,-500.0,0.00027397,7]
[345124372,1734046246868,-500.0,0.00027397,7]
[345124373,1734046246877,-555.17,0.00027397,7]
[345124374,1734046246887,-599.23,0.00027397,7]
[345124375,1734046246896,-500.0,0.00027397,7]
[345124376,1734046246906,-500.0,0.00027397,7]
[345124377,1734046246915,-500.0,0.00027397,7]
[345124378,1734046246925,-500.0,0.00027397,7]
[345124379,1734046246935,-500.0,0.00027397,7]
[345124380,1734046246944,-505.17,0.00027397,7]
[345124381,1734046246955,-500.0,0.00027397,7]
[345124382,1734046246964,-151.0,0.00027397,7]
[345124383,1734046246974,-151.0,0.00027397,7]
[345124384,1734046246984,-151.0,0.00027397,7]
[345124385,1734046246993,-151.0,0.00027397,7]
[345124386,1734046247003,-170.38426,0.00027397,7]
[345124387,1734046247013,-2416.34,0.00027397,7]
[345124388,1734046247023,-500.0,0.00027397,7]
[345124389,1734046247032,-500.0,0.00027397,7]
[345124390,1734046247041,-500.0,0.00027397,7]
[345124391,1734046247050,-1113.14,0.00027397,7]
[345124392,1734046247060,-994.43,0.00027397,7]
[345124393,1734046247070,-609.23551708,0.00027397,7]
[345124394,1734046247081,-500.0,0.00027397,7]
[345124395,1734046247091,-613.25,0.00027397,7]
[345124396,1734046247101,-535.12,0.00027397,7]
[345124397,1734046247110,-500.0,0.00027397,7]
[345124398,1734046247120,-500.0,0.00027397,7]
[345124399,1734046247130,-500.0,0.00027397,7]
[345124400,1734046247139,-1721.37,0.00027397,7]
[345124401,1734046247150,-1954.88,0.00027397,7]
[345124402,1734046247159,-1753.82,0.00027397,7]
[345124403,1734046247168,-3576.18,0.00027397,7]
[345124404,1734046247177,-1471.19,0.00027397,7]
[345124405,1734046247186,-500.0,0.00027397,7]
[345124406,1734046247195,-1088.09,0.00027397,7]
[345124407,1734046247204,-500.0,0.00027397,7]
[345124408,1734046247213,-500.0,0.00027397,7]
[345124409,1734046247223,-1234.24,0.00027397,7]
[345124410,1734046247232,-1231.28,0.00027397,7]
[345124411,1734046247242,-500.0,0.00027397,7]
[345124412,1734046247252,-500.0,0.00027397,7]
[345124413,1734046247261,-1668.98,0.00027397,7]
[345124414,1734046247271,-500.0,0.00027397,7]
[345124415,1734046247280,-500.0,0.00027397,7]
[345124416,1734046247290,-500.0,0.00027397,7]
[345124417,1734046247300,-500.0,0.00027397,7]
[345124418,1734046247309,-2726.43,0.00027397,7]
[345124419,1734046247319,-854.94,0.00027397,7]
[345124420,1734046247328,-500.0,0.00027397,7]
[345124421,1734046247339,-574.72,0.00027397,7]
[345124422,1734046247348,-1040.39,0.00027397,7]
[345124423,1734046247358,-500.0,0.00027397,7]
[345124424,1734046247368,-500.0,0.00027397,7]
[345124425,1734046247377,-500.0,0.00027397,7]
[345124426,1734046247387,-1534.18,0.00027397,7]
[345124427,1734046247397,-504.06,0.00027397,7]
[345124428,1734046247407,-1150.54,0.00027397,7]
[345124429,1734046247416,-151.0,0.00027397,7]
[345124430,1734046247426,-151.0,0.00027397,7]
[345124431,1734046247435,-151.0,0.00027397,7]
[345124432,1734046247445,-222.6452,0.00027397,7]
[345124433,1734046247455,-2249.2,0.00027397,7]
[345124434,1734046247467,-612.82,0.00027397,7]
[345124435,1734046247478,-500.0,0.00027397,7]
[345124436,1734046247487,-1371.64,0.00027397,7]
[345124437,1734046247498,-500.0,0.00027397,7]
[345124438,1734046247508,-599.93470739,0.00027397,7]
[345124439,1734046247519,-500.0,0.00027397,7]
[345124440,1734046247529,-757.16,0.00027397,7]
[345124441,1734046247539,-2323.75,0.00027397,7]
[345124442,1734046247549,-500.0,0.00027397,2]
[345124443,1734046247559,-500.0,0.00027397,7]
[345124444,1734046247569,-500.0,0.00027397,7]
[345124445,1734046247581,-10315.02,0.00027397,7]
[345124446,1734046247590,-500.0,0.00027397,7]
[345124447,1734046247600,-500.0,0.00027397,7]
[345124448,1734046247610,-928.04,0.00027397,7]
[345124449,1734046247620,-500.0,0.00027397,7]
[345124450,1734046247630,-500.0,0.00027397,7]
[345124451,1734046247639,-500.0,0.00027397,7]
[345124452,1734046247649,-184.874759,0.00027397,7]
[345124453,1734046247659,-184.874759,0.00027397,7]
[345124454,1734046247668,-184.874759,0.00027397,7]
[345124455,1734046247678,-500.0,0.00027397,7]
[345124456,1734046247687,-184.874759,0.00027397,7]
[345124457,1734046247697,-184.874759,0.00027397,7]
[345124458,1734046247707,-500.0,0.00027397,7]
[345124459,1734046247717,-184.874759,0.00027397,7]
[345124460,1734046247726,-500.0,0.00027397,7]
[345124461,1734046247736,-500.0,0.00027397,7]
[345124462,1734046247746,-14649.83,0.00027397,7]
[345124463,1734046247756,-2121.82,0.00027397,7]
[345124464,1734046247766,-959.52,0.00027397,7]
[345124465,1734046247776,-184.874759,0.00027397,7]
[345124466,1734046247786,-184.874759,0.00027397,7]
[345124467,1734046247795,-184.874759,0.00027397,7]
[345124468,1734046247805,-184.874759,0.00027397,7]
[345124469,1734046247814,-184.874759,0.00027397,7]
[345124470,1734046247824,-561.65,0.00027397,7]
[345124471,1734046247835,-184.874759,0.00027397,7]
[345124472,1734046247844,-500.0,0.00027397,7]
[345124473,1734046247854,-540.59,0.00027397,7]
[345124474,1734046247863,-710.06,0.00027397,7]
[345124475,1734046247873,-500.0,0.00027397,7]
[345124476,1734046247882,-500.0,0.00027397,7]
[345124477,1734046247891,-514.75,0.00027397,7]
[345124478,1734046247901,-500.0,0.00027397,7]
[345124479,1734046247910,-500.0,0.00027397,7]
[345124480,1734046247920,-500.0,0.00027397,7]
[345124481,1734046247930,-500.0,0.00027397,7]
[345124482,1734046247939,-651.89,0.00027397,7]
[345124483,1734046247949,-500.0,0.00027397,7]
[345124484,1734046247958,-500.0,0.00027397,7]
[345124485,1734046247968,-2064.11,0.00027397,7]
[345124486,1734046247978,-649.86,0.00027397,7]
[345124487,1734046247987,-500.0,0.00027397,7]
[345124488,1734046247997,-500.0,0.00027397,7]